bitfinex-derivatives/quotes_ETHF0:USTF0_20250209
["timestamp","ask_amount","ask_price","bid_price","bid_amount"]
[1739122463299,3.21137852,2641.9,2641.7,18.59734732]
[1739122463600,3.21137852,2641.9,2641.8,18.57690689]
[1739122463997,7.42793799,2641.9,2641.8,18.57690689]
[1739122464192,7.42793799,2641.9,2641.7,0.02044043]
[1739122464393,7.42793799,2641.9,2641.8,0.02044043]
[1739122464599,8.02058605,2641.9,2641.8,0.02044043]
[1739122465100,8.55037605,2641.9,2641.8,0.02044043]
[1739122465500,8.02058605,2641.9,2641.8,0.02044043]
[1739122465701,8.55037605,2641.9,2641.8,0.02044043]
[1739122465997,8.61353087,2641.9,2641.8,0.02044043]
[1739122466201,0.52984,2641.7,2641.0,0.0056872]
[1739122466505,3.2078,2641.2,2641.0,0.0056872]
[1739122466896,4.18820275,2641.1,2641.0,0.0056872]
[1739122467201,0.53008,2640.5,2639.5,0.5595]
[1739122467403,3.2078,2640.2,2639.9,18.57690689]
[1739122467704,4.08290491,2640.1,2639.9,18.57690689]
[1739122468704,2.0176872,2640.3,2640.0,18.57690689]
[1739122468906,2.0176872,2640.3,2640.2,18.57690689]
[1739122469403,6.29410241,2640.3,2640.2,18.57690689]
[1739122469902,6.29410241,2640.3,2639.7,0.0056872]
[1739122470204,6.29410241,2640.3,2640.1,18.57690689]
[1739122472006,6.29410241,2640.3,2640.1,0.71832585]
[1739122472502,6.29410241,2640.3,2640.2,0.71832585]
[1739122472700,4.28210241,2640.3,2640.2,3.92612585]
[1739122472895,2.021,2640.8,2640.2,3.92612585]
[1739122473096,2.021,2640.8,2640.6,0.71832585]
[1739122473301,4.15853563,2640.7,2640.4,0.71832585]
[1739122473502,4.15853563,2640.7,2640.5,0.71832585]
[1739122474104,7.36633563,2640.7,2640.5,0.71832585]
[1739122474603,0.53007,2640.6,2639.8,3.2078]
[1739122474899,3.2078,2640.3,2640.0,0.71832585]
[1739122475299,3.78723092,2640.2,2639.8,3.2078]
[1739122475507,3.78723092,2640.2,2639.9,0.71832585]
[1739122476506,5.80523092,2640.2,2639.9,0.71832585]
[1739122477105,5.80523092,2640.2,2640.0,0.71832585]
[1739122478303,5.80523092,2640.2,2639.7,0.0056872]
[1739122478504,3.2078,2640.0,2639.7,0.0056872]
[1739122478904,4.32737022,2639.9,2639.7,0.0056872]
[1739122480810,4.10699774,2640.1,2639.7,0.0056872]
[1739122481007,3.2078,2640.0,2639.7,0.0056872]
[1739122481411,4.10699774,2639.9,2639.7,0.0056872]
[1739122481808,4.17570436,2640.0,2639.7,0.0056872]
[1739122482215,3.82504458,2639.8,2639.7,26.22929273]
[1739122482417,4.17570436,2639.9,2639.7,0.0056872]
[1739122482718,3.2078,2640.0,2639.7,0.0056872]
[1739122483010,4.22065714,2639.9,2639.7,0.0056872]
[1739122486109,4.22065714,2639.9,2639.2,0.08169007]
[1739122486315,3.2078,2639.6,2639.1,3.2078]
[1739122486819,3.97744712,2639.5,2639.1,29.43140553]
[1739122487014,3.97744712,2639.5,2639.1,3.2078]
[1739122487316,3.2134872,2639.6,2639.1,3.2078]
[1739122488112,3.2134872,2639.6,2639.3,3.94156195]
[1739122488413,0.0056872,2639.6,2639.1,3.2078]
[1739122489314,0.0056872,2639.6,2639.1,3.768]
[1739122489716,11.65104606,2639.2,2639.1,3.768]
[1739122490315,11.65104606,2639.2,2639.1,29.99160553]
[1739122490508,11.65104606,2639.2,2639.1,26.78380553]
[1739122494016,13.09867493,2639.5,2639.1,3.768]
[1739122494225,11.648122,2639.3,2639.1,3.768]
[1739122494928,11.648122,2639.3,2639.2,0.53033]
[1739122495318,11.648122,2639.3,2639.1,4.29834]
[1739122495622,11.648122,2639.3,2639.1,3.768]
[1739122496326,13.09867493,2639.5,2639.1,3.768]
[1739122496824,13.09867493,2639.5,2639.3,3.94156195]
[1739122497212,13.09867493,2639.5,2639.3,9.94156195]
[1739122497419,5.25267493,2639.5,2639.4,3.73814]
[1739122497727,4.34397493,2639.5,2639.4,3.73814]
[1739122497919,4.34397493,2639.5,2639.4,9.73814]
[1739122498727,4.34397493,2639.5,2639.1,0.5602]
[1739122498923,4.34397493,2639.5,2639.3,3.94156195]
[1739122499829,0.0056872,2639.6,2639.3,3.94156195]
[1739122501029,0.0056872,2639.6,2639.4,3.73813]
[1739122501231,0.0056872,2639.6,2639.5,0.5571]
[1739122501527,3.2078,2640.1,2639.5,1.08742]
[1739122501730,3.2078,2640.1,2639.8,3.94156195]
[1739122502122,3.2078,2640.4,2639.8,3.94156195]
[1739122502328,3.2078,2640.4,2640.1,3.94156195]
[1739122503029,3.2078,2640.4,2639.6,0.5672]
[1739122503221,3.2078,2639.8,2639.5,3.94156195]
[1739122504438,3.2078,2640.2,2639.6,0.53028]
[1739122504631,3.2078,2640.2,2639.9,3.94156195]
[1739122504936,7.21439115,2640.2,2639.3,3.94156195]
[1739122505133,3.2078,2639.6,2639.3,3.94156195]
[1739122506240,3.2078,2639.6,2639.2,0.5672]
[1739122506430,3.2078,2639.6,2639.0,7.15504915]
[1739122507033,3.2078,2639.2,2639.0,0.0056872]
[1739122508438,3.2078,2639.2,2638.2,3.2078]
[1739122508439,3.96788397,2639.1,2638.2,3.2078]
[1739122508628,3.2078,2638.5,2637.0,3.2078]
[1739122508828,3.2078,2637.9,2637.5,3.94156195]
[1739122509235,3.2078,2637.6,2637.5,3.94156195]
[1739122509433,4.79304108,2638.4,2637.5,3.94156195]
[1739122509434,3.2078,2637.9,2637.5,3.94156195]
[1739122509637,0.0056872,2637.8,2637.5,3.94156195]
[1739122510929,0.0056872,2637.8,2637.6,3.2078]
[1739122511131,0.0056872,2637.8,2637.6,8.65324288]
[1739122511340,0.0056872,2637.8,2637.6,3.8036]
[1739122511540,0.0056872,2637.8,2637.6,0.5958]
[1739122512639,0.0056872,2637.8,2637.5,3.94156195]
[1739122514036,3.2078,2637.7,2637.3,0.0056872]
[1739122514237,3.2078,2637.4,2637.3,0.0056872]
[1739122514637,7.37410867,2637.4,2637.3,0.0056872]
[1739122516638,4.16630867,2637.4,2637.3,0.0056872]
[1739122516834,0.0056872,2637.8,2637.3,0.0056872]
[1739122517140,0.0056872,2637.8,2637.6,3.94156195]
[1739122520545,0.0056872,2637.8,2637.7,3.2078]
[1739122521750,3.2078,2638.9,2637.7,3.2078]
[1739122521751,3.2078,2638.9,2637.7,18.00104156]
[1739122521948,3.2078,2638.9,2638.6,3.94156195]
[1739122522545,3.2078,2638.9,2638.3,3.94156195]
[1739122522855,3.2134872,2638.9,2638.3,3.94156195]
[1739122523940,3.2134872,2638.9,2638.6,3.94156195]
[1739122525751,0.0056872,2638.9,2638.6,3.94156195]
[1739122528953,0.0056872,2638.9,2638.8,0.53046]
[1739122529449,0.0056872,2638.9,2638.8,7.70206]
[1739122529839,0.0056872,2638.9,2638.8,7.1716]
[1739122530244,0.0056872,2638.9,2638.8,1.1716]
[1739122530446,0.0056872,2638.9,2638.8,7.1716]
[1739122531153,0.0056872,2638.9,2638.8,7.70206]
[1739122531348,3.2078,2639.5,2638.8,11.11316195]
[1739122531553,0.5926,2639.9,2639.4,3.94156195]
[1739122531554,3.8004,2639.9,2639.4,3.94156195]
[1739122531945,4.1869982,2639.8,2639.4,3.94156195]
[1739122533346,3.2078,2639.6,2639.4,3.94156195]
[1739122533646,3.80397852,2639.9,2639.4,3.94156195]
[1739122534046,4.37855637,2639.7,2639.4,3.94156195]
[1739122534355,3.21137852,2639.9,2639.4,3.94156195]
[1739122534653,0.00357852,2639.9,2639.7,3.94156195]
[1739122535049,3.2078,2640.5,2639.8,3.2078]
[1739122535355,3.2078,2640.5,2640.4,3.94156195]
[1739122535653,0.5651,2640.7,2640.4,3.94156195]
[1739122535849,3.2078,2640.9,2640.4,3.94156195]
[1739122536046,3.7737,2641.2,2640.7,3.94156195]
[1739122536346,4.0037865,2641.1,2640.7,3.94156195]
[1739122536546,4.0037865,2641.1,2640.7,3.94724915]
[1739122537147,3.2078,2640.9,2640.7,0.0056872]
[1739122537652,3.2078,2640.9,2640.7,3.94724915]
[1739122538151,3.2078,2641.1,2640.7,3.94724915]
[1739122539758,0.5659,2641.2,2640.7,3.94724915]
[1739122539957,0.5659,2641.2,2641.0,3.94156195]
[1739122540552,3.2078,2641.4,2641.0,3.94156195]
[1739122540753,3.2078,2641.4,2641.3,3.94156195]
[1739122544255,3.2078,2641.4,2641.0,3.94156195]
[1739122544562,3.98771307,2641.4,2641.0,3.94156195]
[1739122544759,3.2078,2641.2,2641.0,3.94156195]
[1739122544961,3.2078,2641.5,2641.0,3.94156195]
[1739122545160,3.2078,2641.5,2641.3,3.94156195]
[1739122546462,3.2078,2641.8,2641.3,3.94156195]
[1739122547064,3.2078,2641.8,2641.6,3.94156195]
[1739122548468,3.2078,2641.8,2641.3,3.94156195]
[1739122548664,3.97588424,2641.7,2641.3,3.94156195]
[1739122548853,4.63008424,2641.7,2641.3,3.94156195]
[1739122549667,4.63008424,2641.7,2641.6,3.94156195]
[1739122549963,3.2078,2641.8,2641.6,3.94156195]
[1739122550361,4.31277701,2641.7,2641.3,3.94156195]
[1739122551168,3.2078,2641.8,2641.3,3.94156195]
[1739122551958,4.25059057,2641.7,2641.3,3.94156195]
[1739122553264,3.2078,2641.8,2641.3,3.94156195]
[1739122553473,3.2078,2641.8,2641.6,3.94156195]
[1739122555270,3.2078,2641.8,2641.7,0.6503]
[1739122556065,0.6009,2642.3,2641.7,0.6503]
[1739122556066,3.2078,2642.3,2641.7,0.6503]
[1739122556372,3.2078,2642.3,2641.8,3.94156195]
[1739122556868,3.2078,2642.0,2641.5,3.94156195]
[1739122557063,3.2078,2641.7,2641.5,3.94156195]
[1739122557467,3.2078,2641.7,2641.2,3.94156195]
[1739122557768,0.6443,2641.6,2641.2,3.94156195]
[1739122560663,3.2078,2642.0,2641.5,3.94156195]
[1739122560869,3.2078,2642.3,2641.9,3.94156195]
[1739122562269,3.2078,2642.0,2641.6,3.94156195]
[1739122562461,0.642,2641.9,2641.6,3.94156195]
[1739122562658,3.2078,2641.7,2641.6,3.94156195]
[1739122564173,9.2078,2641.7,2641.5,0.0056872]
[1739122564363,0.5969,2641.6,2640.7,3.94156195]
[1739122564668,3.2078,2640.8,2640.7,3.94156195]
[1739122565567,13.57673489,2640.8,2640.5,0.0056872]
[1739122565763,0.6265,2640.7,2640.5,0.0056872]
[1739122565963,1.881,2640.6,2640.5,0.0056872]
[1739122566268,6.03411538,2640.6,2640.5,0.0056872]
[1739122568570,3.2078,2640.8,2640.5,0.0056872]
[1739122568870,3.2078,2640.8,2640.7,3.94156195]
[1739122569069,0.0056872,2641.0,2640.7,3.94156195]
[1739122569971,0.0056872,2641.0,2640.5,0.0056872]
[1739122570274,3.2078,2640.8,2640.5,0.0056872]
[1739122570465,0.6342,2640.7,2640.5,0.0056872]
[1739122570664,6.65645944,2640.7,2640.5,0.0056872]
[1739122572175,6.65645944,2640.7,2640.1,3.94156195]
[1739122572471,6.65645944,2640.7,2639.4,1.3189]
[1739122572472,3.2078,2640.2,2639.8,3.94156195]
[1739122572674,3.2078,2639.9,2639.8,3.94156195]
[1739122573370,3.2078,2639.9,2639.6,0.0056872]
[1739122575072,0.6342,2640.7,2639.8,3.94156195]
[1739122575073,3.2078,2640.2,2639.8,3.94156195]
[1739122575271,3.2078,2640.6,2640.1,3.94156195]
[1739122575472,7.3516891,2640.6,2640.4,3.94156195]
[1739122575772,3.2078,2640.6,2640.4,3.94156195]
[1739122575970,4.10179404,2640.5,2640.4,3.94156195]
[1739122576571,4.10179404,2640.5,2640.1,3.94156195]
[1739122576769,3.2078,2640.6,2640.1,3.94156195]
[1739122576972,0.0056872,2641.0,2639.8,0.672]
[1739122576973,3.2134872,2641.0,2640.5,3.94156195]
[1739122577276,0.0056872,2641.0,2640.9,3.94156195]
[1739122582474,3.2078,2641.5,2640.9,9.94156195]
[1739122582674,3.2078,2641.5,2641.4,3.94156195]
[1739122583479,4.5533,2641.9,2641.4,3.94156195]
[1739122583675,0.0056872,2641.7,2641.2,0.0056872]
[1739122583978,0.0056872,2641.7,2641.6,3.94156195]
[1739122585478,3.2078,2641.9,2641.6,13.8831239]
[1739122585676,3.2078,2642.4,2641.8,3.2078]
[1739122586171,3.2078,2642.4,2641.7,1.3029]
[1739122586172,4.15143491,2642.6,2642.3,7.14936195]
[1739122586377,1.2616,2642.7,2642.3,7.14936195]
[1739122586779,4.15143491,2642.6,2642.3,7.14936195]
[1739122589079,4.15143491,2642.6,2642.3,3.94156195]
[1739122589672,1.2616,2642.7,2642.3,3.94156195]
[1739122589673,3.2078,2643.2,2642.3,7.14936195]
[1739122589875,3.2078,2643.2,2642.9,3.94156195]
[1739122590076,4.38685739,2643.1,2642.9,3.94156195]
[1739122590286,3.2078,2643.2,2642.9,3.94156195]
[1739122590782,3.2078,2643.2,2642.8,0.00567591]
[1739122591376,4.0367368,2643.1,2642.8,0.00567591]
[1739122592082,4.0367368,2643.1,2642.9,3.94156195]
[1739122592685,4.11009774,2643.4,2642.9,3.94156195]
[1739122592889,4.11009774,2643.0,2642.9,3.94156195]
[1739122593275,4.1369568,2643.3,2642.9,3.94156195]
[1739122593477,4.514,2643.5,2642.9,3.94156195]
[1739122593685,3.69822106,2657.5,2642.9,3.94156195]
[1739122593686,3.2078,2643.9,2643.3,3.2078]
[1739122593982,4.14369275,2644.0,2643.5,3.94156195]
[1739122594182,4.14369275,2644.0,2643.3,3.2078]
[1739122594183,0.18840894,2643.8,2643.3,3.2078]
[1739122594382,3.2078,2644.3,2643.3,3.2078]
[1739122594584,3.21,2644.5,2643.3,3.2078]
[1739122594585,4.14369275,2643.9,2643.3,3.2078]
[1739122594785,3.2078,2643.7,2643.1,0.667]
[1739122594985,3.2078,2643.7,2643.3,3.94156195]
[1739122595585,3.8766,2643.7,2643.3,3.94156195]
[1739122595888,0.6688,2643.7,2643.3,3.94156195]
[1739122596485,0.6802,2643.8,2643.3,3.94156195]
[1739122596486,0.6802,2643.8,2643.6,3.94156195]
[1739122596682,5.6901,2644.3,2643.6,3.94156195]
[1739122596879,3.2078,2644.0,2643.6,3.94156195]
[1739122597085,4.34303582,2643.7,2643.3,3.94156195]
[1739122597286,0.6599,2643.9,2643.3,3.94156195]
[1739122597785,4.34303582,2643.8,2643.3,3.94156195]
[1739122598177,0.6599,2643.9,2643.6,3.94156195]
[1739122598689,5.6901,2644.3,2643.6,3.94156195]
[1739122598987,4.19958925,2644.2,2643.6,3.94156195]
[1739122599589,3.2078,2643.9,2643.6,3.94156195]
[1739122599779,0.6603,2643.8,2643.0,7.14936195]
[1739122599985,1.857,2643.7,2643.0,3.94156195]
[1739122600290,3.2078,2643.5,2643.0,3.94156195]
[1739122600786,4.35631209,2643.4,2643.0,3.94156195]
[1739122602086,0.6627,2643.5,2643.3,3.94156195]
[1739122602485,4.18992945,2643.4,2643.0,3.94156195]
[1739122603088,3.2078,2643.3,2643.0,3.94156195]
[1739122603300,3.2078,2643.3,2642.8,0.00567591]
[1739122603494,4.7126159,2643.2,2642.8,0.00567591]
[1739122605491,4.7126159,2643.2,2643.0,3.94156195]
[1739122606093,0.6627,2643.5,2643.0,3.94156195]
[1739122606395,0.6627,2643.5,2643.3,3.94156195]
[1739122608596,0.7032,2643.8,2643.3,3.94156195]
[1739122609701,3.73731,2643.6,2642.8,0.00567591]
[1739122609895,3.2078,2643.0,2642.4,3.94156195]
[1739122610198,10.50741007,2642.9,2642.1,3.94156195]
[1739122610390,3.2078,2642.6,2642.1,3.94156195]
[1739122610794,3.95681007,2642.5,2642.1,3.94156195]
[1739122611001,6.5506,2642.9,2642.4,3.94156195]
[1739122611197,0.00563825,2642.6,2642.4,3.94156195]
[1739122611493,0.00563825,2642.6,2642.0,3.96457591]
[1739122611494,4.03618239,2642.5,2642.1,3.94156195]
[1739122611694,3.2078,2642.3,2642.1,3.94156195]
[1739122612193,3.21343825,2642.6,2642.1,3.94156195]
[1739122612497,4.16871097,2642.5,2642.1,3.94156195]
[1739122613998,4.16871097,2642.5,2642.4,3.94156195]
[1739122616493,0.00563825,2642.6,2642.4,3.94156195]
[1739122616698,3.2078,2643.2,2642.4,3.94156195]
[1739122616894,3.2078,2643.2,2643.1,3.94156195]
[1739122618004,7.44365163,2643.2,2642.8,3.94156195]
[1739122618407,0.7203,2643.1,2642.8,3.94156195]
[1739122618796,3.2078,2642.9,2642.5,3.94156195]
[1739122619197,4.7194947,2642.8,2642.5,3.94156195]
[1739122619799,3.9814947,2642.8,2642.5,3.94156195]
[1739122620099,2.5863,2643.4,2642.5,3.94156195]
[1739122620400,2.5863,2643.4,2642.1,1.4703]
[1739122620401,6.62551225,2643.4,2642.7,3.94156195]
[1739122620705,3.2078,2643.2,2642.7,3.94156195]
[1739122621304,4.17470117,2643.1,2642.7,3.94156195]
[1739122621706,4.17470117,2643.1,2643.0,3.94156195]
[1739122622000,3.2078,2643.6,2643.0,3.94156195]
[1739122622203,3.2078,2643.6,2643.5,3.94156195]
[1739122622397,7.27088771,2643.6,2643.5,3.94156195]
[1739122623103,4.06308771,2643.6,2643.5,3.94156195]
[1739122623293,3.2078,2643.9,2643.5,3.94156195]
[1739122623497,3.2078,2643.9,2643.8,3.94156195]
[1739122623897,3.2078,2644.2,2643.8,3.94156195]
[1739122624103,3.2078,2644.2,2644.1,3.94156195]
[1739122624400,7.18043389,2644.2,2644.1,3.94156195]
[1739122624705,3.2078,2644.5,2644.1,3.94156195]
[1739122624898,3.2078,2644.5,2644.4,3.94156195]
[1739122625793,3.2078,2644.9,2644.4,3.94156195]
[1739122626205,4.08213555,2644.8,2644.4,3.94156195]
[1739122627206,3.2078,2644.5,2644.1,3.94156195]
[1739122627704,5.50140974,2644.4,2644.1,3.94156195]
[1739122628106,3.2078,2644.2,2643.8,3.94156195]
[1739122628602,3.2078,2643.9,2643.8,3.94156195]
[1739122628805,3.2078,2643.9,2643.5,3.94156195]
[1739122629001,7.18089403,2643.9,2643.5,3.94156195]
[1739122629701,7.18089403,2643.9,2643.8,3.94156195]
[1739122629902,3.97309403,2643.9,2643.8,3.94156195]
[1739122630895,3.2078,2644.0,2643.5,3.94156195]
[1739122631099,4.13052089,2643.9,2643.5,3.94156195]
[1739122631302,4.13052089,2643.9,2643.8,3.94156195]
[1739122631905,5.0588,2644.7,2643.8,3.94156195]
[1739122632206,5.0588,2644.7,2644.5,3.94156195]
[1739122632403,4.04915357,2644.6,2644.5,3.94156195]
[1739122634906,3.2078,2644.7,2644.5,3.94156195]
[1739122636122,4.36423674,2644.6,2644.5,3.94156195]
[1739122637003,3.2078,2644.7,2644.5,3.94156195]
[1739122643018,4.00940315,2644.6,2644.5,3.94156195]
[1739122643616,4.84260315,2644.6,2644.5,3.94156195]
[1739122645715,4.00940315,2644.6,2644.5,3.94156195]
[1739122646018,3.2078,2644.7,2644.5,3.94156195]
[1739122647119,4.2249588,2644.6,2644.5,3.94156195]
[1739122647316,5.0139588,2644.6,2644.2,3.94156195]
[1739122647519,3.2078,2644.4,2644.2,3.94156195]
[1739122648022,4.16975889,2644.3,2644.2,3.94156195]
[1739122649113,4.16975889,2644.3,2643.9,3.94156195]
[1739122649316,4.16975889,2644.3,2644.2,3.94156195]
[1739122650617,0.8467,2644.5,2644.2,3.94156195]
[1739122651117,4.14906976,2644.4,2644.2,3.94156195]
[1739122653720,4.67840976,2644.4,2643.9,3.94156195]
[1739122654021,3.2078,2644.2,2643.9,3.94156195]
[1739122654524,4.3287234,2644.1,2643.9,3.94156195]
[1739122655221,0.8198,2644.0,2643.9,3.94156195]
[1739122655629,4.86501152,2644.0,2643.9,3.94156195]
[1739122656220,4.86501152,2644.0,2643.4,0.00567591]
[1739122656221,4.86501152,2644.0,2643.6,3.94156195]
[1739122656525,3.2078,2643.7,2643.6,3.94156195]
[1739122657629,7.25433717,2643.7,2643.4,0.00567591]
[1739122657835,2.6615,2643.6,2643.4,0.00567591]
[1739122658234,3.191,2643.6,2643.4,0.00567591]
[1739122658529,4.23539118,2643.5,2643.4,0.00567591]
[1739122659636,4.23539118,2643.5,2643.4,3.38296865]
[1739122659835,4.23911481,2643.5,2643.4,3.38296865]
[1739122662544,4.23911481,2643.5,2643.4,6.59076865]
[1739122662545,0.00372363,2643.5,2643.4,6.59076865]
[1739122662746,0.00372363,2643.5,2643.4,7.47866865]
[1739122663142,0.00372363,2643.5,2643.4,4.10137591]
[1739122663648,0.00372363,2643.5,2643.4,8.02985642]
[1739122664141,0.00372363,2643.5,2643.4,3.93415642]
[1739122664346,4.16496884,2643.5,2643.4,3.93415642]
[1739122667248,0.00372363,2643.5,2643.4,3.93415642]
[1739122668143,0.00372363,2643.5,2643.4,7.14195642]
[1739122668449,3.2078,2644.0,2643.4,7.14195642]
[1739122668649,3.2078,2644.0,2643.8,3.92848051]
[1739122668952,4.25579352,2643.9,2643.5,3.92848051]
[1739122669147,3.2078,2643.7,2643.5,3.92848051]
[1739122670049,3.2078,2643.7,2643.4,0.00567591]
[1739122670050,4.20399708,2643.6,2643.4,0.00567591]
[1739122672049,0.7857,2643.9,2643.5,3.92848051]
[1739122672249,0.7857,2643.9,2643.5,4.75578051]
[1739122673049,3.94233127,2643.7,2643.5,4.75578051]
[1739122673248,3.94233127,2643.8,2643.5,4.75578051]
[1739122673753,0.7857,2643.9,2643.5,4.75578051]
[1739122674444,4.37437011,2643.8,2643.5,4.75578051]
[1739122674654,4.37437011,2643.8,2643.4,0.00567591]
[1739122674655,3.2078,2643.7,2643.4,0.00567591]
[1739122674955,4.0701,2643.7,2643.4,0.00567591]
[1739122675361,4.01918127,2643.6,2643.4,0.00567591]
[1739122679156,0.52955,2643.4,2642.7,3.2078]
[1739122679349,3.2078,2643.1,2642.6,3.92848051]
[1739122679753,0.8371,2643.0,2642.6,3.92848051]
[1739122679947,5.04561488,2643.0,2642.6,3.92848051]
[1739122680150,3.2078,2642.8,2642.6,3.92848051]
[1739122680362,6.85261488,2643.0,2642.6,3.92848051]
[1739122680554,3.97984146,2642.7,2642.6,3.92848051]
[1739122680854,1.807,2643.0,2642.6,4.73008051]
[1739122681061,3.21347591,2643.1,2642.9,3.92848051]
[1739122681448,0.00567591,2643.1,2643.0,0.831]
[1739122682757,3.2078,2643.8,2643.0,4.0388]
[1739122682960,3.2078,2643.8,2643.3,3.92848051]
[1739122683157,3.95892739,2643.7,2643.3,3.92848051]
[1739122683957,3.2078,2643.4,2643.0,4.75948051]
[1739122684363,4.06991139,2643.3,2643.0,4.75948051]
[1739122686459,3.2078,2643.4,2643.0,4.75948051]
[1739122687263,5.0108,2643.7,2643.3,3.92848051]
[1739122687457,5.0108,2643.7,2643.0,0.831]
[1739122687458,3.98300636,2643.3,2643.0,4.75948051]
[1739122687860,3.2078,2643.1,2642.7,3.92848051]
[1739122688167,3.98300636,2643.0,2642.7,3.92848051]
[1739122689165,3.2078,2642.8,2642.5,0.00567591]
[1739122689562,5.1966558,2642.7,2642.5,0.00567591]
[1739122690257,6.702,2643.1,2642.6,3.2078]
[1739122690258,4.895,2643.1,2642.6,3.2078]
[1739122690463,4.895,2643.1,2643.0,3.92848051]
[1739122690866,9.25731714,2643.1,2643.0,3.92848051]
[1739122691266,4.36231714,2643.1,2643.0,3.92848051]
[1739122691463,3.2078,2643.4,2643.0,3.92848051]
[1739122691768,1.6712,2643.7,2643.3,3.37725033]
[1739122691969,1.6712,2643.7,2643.6,3.37725033]
[1739122692469,5.91924542,2643.7,2643.6,3.37725033]
[1739122693575,4.24804542,2643.7,2643.6,3.92872043]
[1739122694761,3.2078,2643.8,2643.6,3.92872043]
[1739122695368,3.2078,2643.8,2643.7,0.8151]
[1739122696667,3.2078,2644.1,2643.7,0.8151]
[1739122696970,7.30472255,2644.1,2643.7,0.8151]
[1739122697569,4.09692255,2644.1,2643.7,0.8151]
[1739122697871,4.09692255,2644.1,2643.9,3.92872043]
[1739122699863,3.2078,2644.4,2643.9,3.92872043]
[1739122700266,4.30423057,2644.3,2643.9,3.93439634]
[1739122700475,4.30423057,2644.3,2644.2,3.92872043]
[1739122700664,3.2078,2644.4,2644.2,3.92872043]
[1739122703769,2.6452,2644.6,2644.2,3.92872043]
[1739122703968,3.2078,2644.4,2644.2,3.92872043]
[1739122706376,4.26479661,2644.3,2643.9,3.93439634]
[1739122706672,3.2078,2644.1,2643.9,3.93439634]
[1739122707369,4.24334739,2644.0,2643.9,0.00567591]
[1739122707566,5.95674739,2644.0,2643.9,0.00567591]
[1739122714879,9.16454739,2644.0,2643.9,0.00567591]
[1739122715773,11.46495739,2644.0,2643.9,0.00567591]
[1739122715973,16.93554739,2644.0,2643.5,0.499]
[1739122716276,3.2078,2643.6,2643.5,0.499]
[1739122716778,7.45516587,2643.6,2643.5,0.499]
[1739122716983,13.45516587,2643.6,2643.0,3.37641293]
[1739122717174,3.2078,2643.2,2643.0,3.37641293]
[1739122717379,3.2078,2643.2,2643.0,3.38208884]
[1739122717579,4.33731247,2643.1,2643.0,3.38208884]
[1739122719274,3.2078,2643.2,2643.0,3.38208884]
[1739122719476,5.8052,2643.5,2643.0,3.38208884]
[1739122719781,4.21461186,2643.4,2643.0,3.38208884]
[1739122720981,3.2078,2643.2,2643.0,3.38208884]
[1739122721389,4.2307608,2643.1,2643.0,3.38208884]
[1739122723079,3.2078,2643.2,2643.0,3.38208884]
[1739122723781,3.2078,2643.2,2643.0,4.23588884]
[1739122725284,0.8224,2643.5,2643.0,4.23588884]
[1739122725285,4.0302,2643.5,2643.0,4.23588884]
[1739122725482,4.0302,2643.5,2643.4,3.37641293]
[1739122725788,8.30936701,2643.5,2643.4,3.37641293]
[1739122727185,7.48696701,2643.5,2643.4,3.37641293]
[1739122727589,3.2078,2643.5,2643.4,3.37641293]
[1739122727794,0.00567591,2643.8,2643.4,3.37641293]
[1739122728089,0.00567591,2643.8,2643.7,3.37641293]
[1739122729288,4.14689087,2643.8,2643.7,3.37641293]
[1739122729893,9.84189087,2643.8,2643.4,3.37641293]
[1739122730100,3.2078,2643.5,2643.4,3.37641293]
[1739122730794,7.20310604,2643.5,2643.1,4.19261293]
[1739122733492,3.2078,2643.2,2643.1,3.37641293]
[1739122733897,7.42603021,2643.2,2643.1,3.37641293]
[1739122739203,7.42603021,2643.2,2643.0,0.00567591]
[1739122739402,0.802,2643.1,2643.0,0.00567591]
[1739122739603,1.589,2643.1,2643.0,0.00567591]
[1739122739802,7.45832832,2643.1,2643.0,0.00567591]
[1739122742800,7.98791832,2643.1,2643.0,0.00567591]
[1739122743206,7.45832832,2643.1,2643.0,0.00567591]
[1739122743508,4.11332832,2643.1,2643.0,0.00567591]
[1739122744201,3.2078,2643.2,2643.0,0.00567591]
[1739122744508,4.31455099,2643.1,2643.0,0.00567591]
[1739122747300,3.2078,2643.2,2643.0,0.81987591]
[1739122747500,3.2078,2643.2,2643.1,3.37641293]
[1739122747905,7.14771472,2643.2,2643.1,3.37641293]
[1739122751409,7.14771472,2643.2,2643.0,0.00567591]
[1739122751601,1.6773,2643.1,2643.0,0.00567591]
[1739122752101,5.93972916,2643.1,2643.0,0.00567591]
[1739122753506,4.26242916,2643.1,2643.0,0.00567591]
[1739122760808,9.68702916,2643.1,2642.5,3.37641293]
[1739122761008,3.2078,2642.6,2642.5,3.37641293]
[1739122761205,3.2078,2642.9,2642.5,3.37641293]
[1739122761406,3.2078,2642.6,2642.5,3.37641293]
[1739122762104,15.13338329,2642.6,2641.9,3.37641293]
[1739122762313,3.2078,2642.1,2641.6,5.06321293]
[1739122762512,1.758,2642.0,2641.6,3.37641293]
[1739122762808,3.2078,2641.7,2641.3,3.37641293]
[1739122763709,4.31867611,2641.6,2641.3,3.37641293]
[1739122763907,3.2078,2641.4,2641.2,0.00567591]
[1739122764105,4.9678,2641.4,2641.2,0.00567591]
[1739122764317,4.50494906,2641.3,2641.2,0.00567591]
[1739122765919,3.65774906,2641.3,2641.2,0.00567591]
[1739122767418,4.97047591,2641.8,2641.2,0.00567591]
[1739122767618,4.97047591,2641.8,2641.6,3.37641293]
[1739122767825,4.23195035,2641.7,2641.6,3.37641293]
[1739122768123,4.97047591,2641.8,2641.6,3.37641293]
[1739122768719,4.97047591,2641.8,2641.4,0.8643]
[1739122768915,4.18059471,2641.7,2641.4,0.8643]
[1739122769116,4.18059471,2641.7,2641.3,3.37641293]
[1739122769316,4.18059471,2641.7,2641.2,0.00567591]
[1739122769317,3.2078,2641.5,2641.2,0.00567591]
[1739122769723,4.07345762,2641.4,2641.2,0.00567591]
[1739122770419,4.07345762,2641.4,2641.3,3.37641293]
[1739122771325,4.07345762,2641.4,2641.3,5.14391293]
[1739122773218,3.21347591,2641.8,2641.3,5.14391293]
[1739122773426,3.21347591,2641.8,2641.7,3.37641293]
[1739122775421,7.60766943,2641.8,2641.7,3.37641293]
[1739122776924,7.60766943,2641.8,2641.4,3.37641293]
[1739122777125,0.00567591,2641.8,2641.7,3.37641293]
[1739122780923,0.00567591,2641.8,2641.7,6.58421293]
[1739122781831,0.00567591,2641.8,2641.7,12.58421293]
[1739122782236,0.00567591,2641.8,2641.7,3.37641293]
[1739122782526,0.00567591,2641.8,2641.4,3.2078]
[1739122782527,7.2850816,2641.8,2641.4,3.37641293]